Cogmind - Beta 13 @@@ ROGUE MODE // 2024.04.16 @ 22:10:49 Player: SovietPaperclip Result: Self-destructed Performance ------------- Evolutions (3) 1500 Regions Visited (8) 1600 Robots Destroyed (127) 635 Value Destroyed (3958) 3958 Prototype IDs (13) 260 Alien Tech Used (0) 0 Bonus (592) 592 TOTAL SCORE: 8545 Bonus ------- High Alert Combat Kills 232 Follower Combat Kills 60 Met Data Miner 300 Cogmind --------- Core Integrity 213/700 Matter 269/300 Energy 3/100 System Corruption 8% Temperature Cool (0) Movement Treading (330) Ox2 Location -6/Proximity Caves Parts ------- > --- POWER (2) -------- (None) > --- PROPULSION (4) --- Armored Treads Armored Treads > --- UTILITY (5) ------ Improved Cooling System Huge Storage Unit Improved Signal Interpreter Improved Shield Generator > --- WEAPON (2) ------- Assault Cannon > --- INVENTORY (25) --- Enhanced Flexi-carbon Leg Improved Cooling System High-capacity Matter Pod (200) Structural Scanner Improved Terrain Scanner Advanced Terrain Scan Processor Core Analyzer Matter Filter Transmission Jammer Hacking Suite Authchip [Propulsion] Long-range Tractor Beam Improved EM Pulse Cannon Plasma Cannon Plasma Cannon Power Maul Peak State ------------ > --- POWER ------------ Improved Deuterium Engine Reinforced Deuterium Engine > --- PROPULSION ------- Armored Treads Armored Treads Armored Huge Wheel > --- UTILITY ---------- Huge Storage Unit Improved Signal Interpreter Hardened Heavy Armor Plating Authchip [Weapon] > --- WEAPON ----------- Heavy Assault Cannon > --- INVENTORY -------- Heavy Ion Engine Micro Nuclear Core Armored Treads Armored Treads Armored Treads Improved Heat Sink Huge Storage Unit Medium Matter Pod Structural Scanner Improved Sensor Array Advanced Terrain Scan Processor Improved Salvage Targeting Computer Core Analyzer Matter Filter Weapon Cycler Transmission Jammer Improved Shield Generator Hacking Suite Authchip [Propulsion] High-powered Tractor Beam Long-range Tractor Beam Improved EM Pulse Cannon Plasma Cannon Plasma Cannon Chainsword [Rating: 52] Favorites ----------- Power Reinforced Deuterium Engine Engine Reinforced Deuterium Engine Power Core Micro Nuclear Core Propulsion Light Treads Treads Light Treads Leg Enhanced Flexi-carbon Leg Wheel Armored Huge Wheel Utility Improved Signal Interpreter Device Improved Sensor Array Storage Huge Storage Unit Processor Improved Signal Interpreter Hackware Authchip [Weapon] Protection Light Armor Plating Weapon Heavy Assault Cannon Energy Cannon Plasma Cannon Ballistic Gun Improved Assault Rifle Ballistic Cannon Heavy Assault Cannon Slashing Weapon Chainsword Build | -11 -10 -9 -8 -7 -7 -7 -7 -6 ------- Run | Yrd Mat Mat Mat Fac Low Low Dat Pro Slots Evolved 6 | . . 2 2 2 . . . . Power 1 | . . . . 1 . . . . Propulsion 2 | . . 1 1 . . . . . Utility 3 | . . 1 1 1 . . . . Weapon . | . . . . . . . . . Parts Attached 126 | 7 3 5 20 72 6 8 . 5 Power 8 | 1 . 1 . 3 1 . . 2 Engine 4 | 1 . 1 . 2 . . . . Core 4 | . . . . 1 1 . . 2 Reactor . | . . . . . . . . . Propulsion 19 | 2 . 1 7 6 . 2 . 1 Treads 16 | 2 . 1 7 4 . 2 . . Leg 1 | . . . . . . . . 1 Wheel 2 | . . . . 2 . . . . Hover . | . . . . . . . . . Flight . | . . . . . . . . . Utility 85 | 1 3 1 10 61 3 6 . . Device 65 | . 1 . 2 53 3 6 . . Storage 6 | 1 2 . 2 1 . . . . Processor 2 | . . . 1 1 . . . . Hackware 1 | . . . . 1 . . . . Protection 11 | . . 1 5 5 . . . . Artifact . | . . . . . . . . . Weapon 14 | 3 . 2 3 2 2 . . 2 Energy Gun . | . . . . . . . . . Energy Cannon 1 | . . . . . 1 . . . Ballistic Gun 7 | 3 . 2 2 . . . . . Ballistic Cannon 5 | . . . . 2 1 . . 2 Launcher . | . . . . . . . . . Special Weapon . | . . . . . . . . . Impact Weapon . | . . . . . . . . . Slashing Weapon 1 | . . . 1 . . . . . Piercing Weapon . | . . . . . . . . . Special Melee Weapon . | . . . . . . . . . Unidentified Prototypes 4 | . . 2 1 . . . . 1 Corrupted Parts 1 | . . . . . . . . 1 System Corruption 5 | . . . . . . . . 5 Parts Lost 29 | . . . 9 8 1 5 . 6 Power 6 | . . . . 1 1 1 . 3 Propulsion 7 | . . . 3 1 . 2 . 1 Utility 13 | . . . 6 4 . 2 . 1 Weapon 3 | . . . . 2 . . . 1 Highest Loss Streak 3 | . . . 2 3 1 3 . 3 To Critical Strikes . | . . . . . . . . . Average Slot Usage (%) 85 | . 97 88 96 78 85 84 69 76 Engine 10 | . 14 11 9 13 4 . . . Core 2 | . . . . 1 9 8 7 9 Treads 22 | . 28 27 35 17 15 14 15 15 Wheel 3 | . . . . 5 7 7 7 5 Device 9 | . 11 11 5 6 14 20 23 17 Storage 8 | . 14 11 9 7 7 7 7 7 Processor 5 | . . . 3 7 7 7 7 7 Protection 8 | . . 6 14 8 7 1 . . Ballistic Gun 7 | . 28 22 17 . . . . . Ballistic Cannon 4 | . . . . 6 7 7 . 11 Naked Turns . | . . . . . . . . . Heaviest Build 138 | 14 51 59 63 138 114 111 93 119 Greatest Support 83 | 40 40 60 83 83 28 28 28 40 Greatest Overweight (x) 4 | . 1 1 . 4 4 3 3 4 Average Overweight (x) 2 | . . . . 3 3 3 3 3 Largest Inventory Capacity 25 | 8 20 20 20 25 25 25 25 25 Average Capacity 22 | 6 13 20 19 24 25 25 25 25 Most Carried 25 | 4 6 15 20 25 21 20 18 17 Average Carried 17 | 1 4 9 16 21 20 18 17 15 Final Capacity 25 | 8 20 20 20 25 25 25 25 25 Final Carried 22 | 2 6 12 19 22 20 16 18 16 Class Distribution -------------------- 68% | Scavenger-Mutant 31% | Mutant Dominant Class ---------------- Mutant | -10/Materials Mutant | -9/Materials Scavenger-Mutant | -8/Materials Scavenger-Mutant | -7/Factory Scavenger-Mutant | -7/Lower Caves Mutant | -7/Lower Caves Mutant | -7/Data Miner Mutant | -6/Proximity Caves Resources | -11 -10 -9 -8 -7 -7 -7 -7 -6 ----------- Run | Yrd Mat Mat Mat Fac Low Low Dat Pro Matter Collected 4531 | 228 43 228 1080 2138 263 270 . 281 Remotely 1812 | . . . . 1708 88 16 . . Salvage Created 4320 | . 61 437 1584 1572 116 393 . 157 Parts 265 | . 5 30 118 84 3 13 . 12 Haulers Intercepted 9 | . . . 4 5 . . . . Recyclers Shooed 11 | . 2 1 3 5 . . . . Parts Field Recycled . | . . . . . . . . . Retrieved Matter . | . . . . . . . . . Parts Self-Destructed 28 | . . . . . 3 13 . 12 Prevented . | . . . . . . . . . Kills | -11 -10 -9 -8 -7 -7 -7 -7 -6 ------- Run | Yrd Mat Mat Mat Fac Low Low Dat Pro Combat Hostiles Destroyed 89 | . 1 9 24 34 3 11 . 7 Melee 1 | . . . 1 . . . . . Guns 33 | . 1 9 23 . . . . . Cannons 54 | . . . . 34 3 10 . 7 Classes Destroyed 14 | . 2 1 8 2 . 1 . . Worker 12 | . . . 6 6 . . . . Builder 8 | . . . 4 4 . . . . Tunneler 3 | . . . 1 2 . . . . Hauler 9 | . . . 4 5 . . . . Recycler 6 | . . . 1 5 . . . . Operator 1 | . 1 . . . . . . . Watcher 3 | . . . 2 1 . . . . Swarmer 15 | . . . 7 2 . . . 6 Grunt 55 | . 1 6 11 24 3 10 . . Brawler 1 | . . . . . . 1 . . Sentry 11 | . . 3 5 2 . . . 1 Hunter 3 | . . . . 3 . . . . Programmer 3 | . . . . 3 . . . . Heavy 1 | . . . 1 . . . . . Best Kill Streak 15 | . 1 3 7 15 3 4 . 3 Combat Bots Only 6 | . 1 3 6 5 3 4 . 3 Max Kills in Single Turn 5 | . 1 1 2 5 1 1 . 1 Gunslinging . | . . . . . . . . . Exploded . | . . . . . . . . . Melee 1 | . . . 1 . . . . . Uniques/NPCs Destroyed . | . . . . . . . . . Combat | -11 -10 -9 -8 -7 -7 -7 -7 -6 -------- Run | Yrd Mat Mat Mat Fac Low Low Dat Pro Hostile Shots Fired 673 | . 7 42 130 284 27 90 . 93 Missed 183 | . 1 8 34 74 7 30 . 29 Damage Taken 6805 | . 68 456 1440 2970 346 905 . 620 Core 701 | . . 52 162 307 32 105 . 43 Absorbed by Shields 304 | . . . . . . 69 . 235 Regen/Repaired (Parts) 248 | . . . 34 214 . . . . Core Remaining (%) 89 | 100 100 87 70 . . . . . Volleys Fired 401 | . 14 28 111 165 10 41 . 32 Largest 2 | . 2 2 2 1 2 2 . 2 Hottest 128 | . 40 46 48 60 128 128 . 92 Shots Fired 594 | . 28 56 222 166 18 64 . 40 Gun 306 | . 28 56 222 . . . . . Cannon 288 | . . . . 166 18 64 . 40 Launcher . | . . . . . . . . . Special . | . . . . . . . . . Kinetic 563 | . 28 56 222 166 10 41 . 40 Thermal 31 | . . . . . 8 23 . . Explosive . | . . . . . . . . . Electromagnetic . | . . . . . . . . . Robot Hit Streak 26 | . 8 19 26 17 8 11 . 4 Robot Miss Streak 5 | . 3 1 4 3 1 3 . 5 Penetration Max 1 | . . . . 1 . 1 . . Secondary Targets 5 | . . . 5 . . . . . Max Gunslinging Chain 1 | . . . 1 . . . . . Shots Hit Robots 380 | . 16 46 146 101 13 42 . 16 Core Hits 170 | . 4 17 67 50 6 18 . 8 Critical Kills 3 | . . 1 1 . . 1 . . Critical Parts Destroyed 1 | . . . 1 . . . . . Critical Strikes 17 | . . 1 2 8 . 5 . 1 Meltdown 1 | . . . . . . 1 . . Destroy 3 | . . 1 2 . . . . . Blast 13 | . . . . 8 . 4 . 1 Melee Attacks 3 | . . . 3 . . . . . Impact . | . . . . . . . . . Slashing 3 | . . . 3 . . . . . Piercing . | . . . . . . . . . Sneak Attacks . | . . . . . . . . . Combat Hostiles . | . . . . . . . . . Follow-up Attacks . | . . . . . . . . . Damage Inflicted 12221 | . 201 689 2393 6898 351 1308 . 381 Guns 3246 | . 201 689 2356 . . . . . Cannons 7646 | . . . . 5606 351 1308 . 381 Explosions 1285 | . . . . 1285 . . . . Melee 34 | . . . 34 . . . . . Ramming 10 | . . . 3 7 . . . . Kinetic 10313 | . 201 689 2356 5606 250 830 . 381 Thermal 735 | . . . . 156 101 478 . . Explosive 1129 | . . . . 1129 . . . . Electromagnetic . | . . . . . . . . . Impact . | . . . . . . . . . Slashing 34 | . . . 34 . . . . . Piercing . | . . . . . . . . . Highest Corruption 8 | . 1 . . 3 3 3 3 8 Average Corruption 3 | . 1 . . 2 3 3 3 7 Corruption Purged . | . . . . . . . . . Corruption Blocked . | . . . . . . . . . Effects 57 | . 1 . . 31 6 3 1 15 Message Errors 17 | . . . . 10 2 2 1 2 Matter Fused 16 | . . . . 10 2 . . 4 Heat Flow Errors 3 | . . . . 2 . . . 1 Energy Discharges 8 | . . . . 3 1 . . 4 Data Loss (minor) 5 | . . . . 3 . 1 . 1 Data Loss (major) 5 | . 1 . . 1 1 . . 2 Misfires 1 | . . . . 1 . . . . Alerts 2 | . . . . 1 . . . 1 Overload Shots . | . . . . . . . . . Overflow Damage 586 | . . . . 573 . . . 13 Projectiles 530 | . . . . 517 . . . 13 Explosions 56 | . . . . 56 . . . . Melee . | . . . . . . . . . Knockbacks 56 | . . . . 44 5 4 . 3 Impact . | . . . . . . . . . Kinetic 51 | . . . . 39 5 4 . 3 Secondary 5 | . . . . 5 . . . . Self-Inflicted Damage 88 | . . . . 88 . . . . Shots 1 | . . . . 1 . . . . Rammed 1 | . . . . 1 . . . . Targets Rammed 2 | . . . 1 1 . . . . Kicked . | . . . . . . . . . Crushed 1 | . . . 1 . . . . . Highest Temperature 403 | . . 26 136 403 53 401 . 75 Average Temperature 104 | . . 7 32 125 35 140 . 48 Received Heat Transfer 3035 | . 36 258 657 1317 216 522 . 29 Effects 15 | . . . . 12 . 3 . . Shutdowns 5 | . . . . 3 . 2 . . Energy Bleed 4 | . . . . 4 . . . . Interference 3 | . . . . 3 . . . . Short Circuit 2 | . . . . 1 . 1 . . Damage (minor) 1 | . . . . 1 . . . . Siege Activations . | . . . . . . . . . Robots Corrupted . | . . . . . . . . . Combat Hostiles . | . . . . . . . . . Parts Fried . | . . . . . . . . . Impact Corruptions 1 | . . . . 1 . . . . Robots Melted 1 | . . . . . . 1 . . Combat Hostiles 1 | . . . . . . 1 . . Parts Melted . | . . . . . . . . . Heat Transferred 1300 | . . . . 150 200 950 . . Parts Sabotaged . | . . . . . . . . . Parts Stolen . | . . . . . . . . . Parts Stripped . | . . . . . . . . . Power Chain Reactions . | . . . . . . . . . Alert | -11 -10 -9 -8 -7 -7 -7 -7 -6 ------- Run | Yrd Mat Mat Mat Fac Low Low Dat Pro Peak Influence 900 | . 51 225 342 900 . . . . Initial 96 | . . 21 31 96 . . . . Average 245 | . 24 81 233 313 . . . . Maximum Alert Level 3 | . . 1 1 3 . . . . Low Security (%) 47 | 100 100 89 29 44 . . . . Level 1 40 | . . 10 70 34 . . . . Level 2 5 | . . . . 9 . . . . Level 3 6 | . . . . 12 . . . . Level 4 . | . . . . . . . . . Level 5 . | . . . . . . . . . High Security . | . . . . . . . . . Max Security . | . . . . . . . . . Squads Dispatched 18 | . 1 . 4 13 . . . . Investigation 5 | . . . 2 3 . . . . Extermination 3 | . . . . 3 . . . . Reinforcement 9 | . 1 . 2 6 . . . . Assault 1 | . . . . 1 . . . . Garrison . | . . . . . . . . . Intercept . | . . . . . . . . . Searches Triggered . | . . . . . . . . . Construction Impeded 4 | . . . 1 3 . . . . Haulers Reinforced 1 | . . . . 1 . . . . Active Scanning Responses . | . . . . . . . . . Cargo Convoy Interrupts . | . . . . . . . . . Stealth | -11 -10 -9 -8 -7 -7 -7 -7 -6 --------- Run | Yrd Mat Mat Mat Fac Low Low Dat Pro Distress Signals 6 | . . 1 3 2 . . . . Communications Jammed 1 | . . . . 1 . . . . Distress Signals 1 | . . . . 1 . . . . Times Spotted 138 | . 3 13 35 58 3 12 . 14 Peak Tracking Total 11 | . 1 4 6 11 3 4 . 5 Tactical Retreats 7 | . . 3 1 1 . 1 . 1 Traps | -11 -10 -9 -8 -7 -7 -7 -7 -6 ------- Run | Yrd Mat Mat Mat Fac Low Low Dat Pro Traps Triggered 5 | . 1 . 1 3 . . . . Indirectly . | . . . . . . . . . Trap Hack Attempts . | . . . . . . . . . Triggered . | . . . . . . . . . Disarmed . | . . . . . . . . . Reprogrammed . | . . . . . . . . . Reused . | . . . . . . . . . Traps Extracted . | . . . . . . . . . Installed . | . . . . . . . . . Triggered . | . . . . . . . . . Machines | -11 -10 -9 -8 -7 -7 -7 -7 -6 ---------- Run | Yrd Mat Mat Mat Fac Low Low Dat Pro Machines Disabled 14 | . . . . 14 . . . . Max in Single Turn 3 | . . . . 3 . . . . Machines Repaired . | . . . . . . . . . Machines Dismantled . | . . . . . . . . . Machines Sabotaged . | . . . . . . . . . Overloaded Fab Kills . | . . . . . . . . . Hacking | -11 -10 -9 -8 -7 -7 -7 -7 -6 --------- Run | Yrd Mat Mat Mat Fac Low Low Dat Pro Machines Accessed 18 | . . 2 7 5 . . 4 . Terminals 9 | . . 2 4 3 . . . . Fabricators 1 | . . . . 1 . . . . Repair Stations 2 | . . . 1 1 . . . . Recycling Units . | . . . . . . . . . Scanalyzers 2 | . . . 2 . . . . . Garrison Access . | . . . . . . . . . Total Hacks 81 | . . 5 34 12 . . 30 . Successful 61 | . . 2 25 4 . . 30 . Failed 20 | . . 3 9 8 . . . . Catastrophic 6 | . . . 2 4 . . . . Database Lockouts . | . . . . . . . . . Manual 2 | . . 2 . . . . . . Terminals 22 | . . 5 9 8 . . . . Fabricators 2 | . . . . 2 . . . . Repair Stations 4 | . . . 2 2 . . . . Recycling Units . | . . . . . . . . . Scanalyzers 23 | . . . 23 . . . . . Garrison Access . | . . . . . . . . . Terminal Hacks 35 | . . 2 3 . . . 30 . Record 11 | . . . . . . . 11 . Part Schematic 11 | . . . . . . . 11 . Robot Schematic 5 | . . . . . . . 5 . Prototype ID Bank 3 | . . . . . . . 3 . Emergency Access Points 1 | . . 1 . . . . . . Alert Level 2 | . . . 2 . . . . . Hauler Manifests 1 | . . 1 . . . . . . Zone Layout 1 | . . . 1 . . . . . Fabricator Hacks 2 | . . . . 2 . . . . Load Schematic 1 | . . . . 1 . . . . Build 1 | . . . . 1 . . . . Repair Station Hacks 4 | . . . 2 2 . . . . Scan Component 2 | . . . 1 1 . . . . Repair 2 | . . . 1 1 . . . . Recycling Unit Hacks . | . . . . . . . . . Scanalyzer 20 | . . . 20 . . . . . Insert Component 9 | . . . 9 . . . . . Analyze 11 | . . . 11 . . . . . Garrison Access Hacks . | . . . . . . . . . Unauthorized Hacks . | . . . . . . . . . Terminals . | . . . . . . . . . Fabricators . | . . . . . . . . . Repair Stations . | . . . . . . . . . Recycling Units . | . . . . . . . . . Scanalyzers . | . . . . . . . . . Garrison Access . | . . . . . . . . . Data Cores Recovered . | . . . . . . . . . Used . | . . . . . . . . . Hacking Detections 10 | . . 2 4 4 . . . . Full Trace Events 4 | . . . 2 2 . . . . Feedback Events . | . . . . . . . . . Feedback Blocked . | . . . . . . . . . Robot Schematics Acquired 5 | . . . . . . . 5 . Robots Built . | . . . . . . . . . Authchips . | . . . . . . . . . Time . | . . . . . . . . . Total Robot Build Rating . | . . . . . . . . . Part Schematics Acquired 20 | . . . 9 . . . 11 . Parts Built 1 | . . . . 1 . . . . Authchips 1 | . . . . 1 . . . . Time 36 | . . . . 36 . . . . Total Part Build Rating 3 | . . . . 3 . . . . Parts Repaired 2 | . . . 1 1 . . . . Time 75 | . . . 53 22 . . . . Parts Recycled . | . . . . . . . . . Recycled Matter . | . . . . . . . . . Retrieved Matter . | . . . . . . . . . Retrieved Components . | . . . . . . . . . Parts Scanalyzed 9 | . . . 9 . . . . . Part Schematics Acquired 9 | . . . 9 . . . . . Parts Damaged 2 | . . . 2 . . . . . Bothacking | -11 -10 -9 -8 -7 -7 -7 -7 -6 ------------ Run | Yrd Mat Mat Mat Fac Low Low Dat Pro Used RIF Installer . | . . . . . . . . . Robots Hacked . | . . . . . . . . . Non-combat . | . . . . . . . . . Combat . | . . . . . . . . . Robot Hacks Applied . | . . . . . . . . . Relay Couplers Released . | . . . . . . . . . Fabnet Peak Effective % . | . . . . . . . . . Robots Rewired . | . . . . . . . . . Allies Hacked . | . . . . . . . . . Hacks Repelled . | . . . . . . . . . Allies | -11 -10 -9 -8 -7 -7 -7 -7 -6 -------- Run | Yrd Mat Mat Mat Fac Low Low Dat Pro Total Allies 1 | . . . . . . . . 1 Largest Group 1 | . . . . . . . . 1 Highest-Rated Group 96 | . . . . . . . . 96 Highest-Rated Ally 96 | . . . . . . . . 96 Total Orders . | . . . . . . . . . Ally Attacks 12 | . . . . . . . . 12 Total Damage 318 | . . . . . . . . 318 Kills 3 | . . . . . . . . 3 Allies Corrupted . | . . . . . . . . . Allies Melted . | . . . . . . . . . Intel | -11 -10 -9 -8 -7 -7 -7 -7 -6 ------- Run | Yrd Mat Mat Mat Fac Low Low Dat Pro Robot Analysis Total . | . . . . . . . . . Derelict Logs Recovered 3 | . . . . . 1 1 . 1 Drone Launches . | . . . . . . . . . Drone Recoveries . | . . . . . . . . . Exploration | -11 -10 -9 -8 -7 -7 -7 -7 -6 ------------- Run | Yrd Mat Mat Mat Fac Low Low Dat Pro Turns Passed 6664 | 69 341 515 1688 2875 330 338 120 388 Spaces Moved 2834 | 38 172 198 737 1086 184 164 83 172 Core 6 | 6 . . . . . . . . Treads 1327 | 32 172 198 737 175 . . . 13 Legs . | . . . . . . . . . Wheels 1501 | . . . . 911 184 164 83 159 Hover . | . . . . . . . . . Flight . | . . . . . . . . . Fastest Speed 50 | 50 160 160 160 145 145 145 145 145 Average Speed 166 | 142 162 195 160 173 155 145 145 165 Slowest Speed 330 | 160 240 240 162 242 160 145 145 330 Overloaded Moves . | . . . . . . . . . Propulsion Burnouts . | . . . . . . . . . Robots Hopped . | . . . . . . . . . Cave-ins Triggered . | . . . . . . . . . Exploration Rate (%) 34 | 4 35 24 39 34 44 31 70 31 Regions Visited 8 Branch Regions 4 Pre-discovered Areas 2 | . . . . . 1 . 1 . Known Exits Taken 4 | . . . . 1 1 1 1 . Unknown Exits Taken 4 | 1 1 1 1 . . . . . Scrap Searched 3 | . . . . . 1 1 . 1 Spaces Dug 22 | . . . 1 21 . . . . Terrain Destroyed 115 | . . . 1 91 3 12 . 8 Melee 1 | . . . 1 . . . . . Projectile 92 | . . . . 69 3 12 . 8 AOE 22 | . . . . 22 . . . . Terrain Rammed . | . . . . . . . . . Walls Destroyed . | . . . . . . . . . Machines Disabled . | . . . . . . . . . Actions | -11 -10 -9 -8 -7 -7 -7 -7 -6 --------- Run | Yrd Mat Mat Mat Fac Low Low Dat Pro Total 4136 | 52 207 271 1044 1818 209 214 84 237 Wait 617 | . 8 21 123 430 8 2 . 25 Move 2826 | 37 171 197 736 1085 183 163 82 172 Hop . | . . . . . . . . . Pick Up 104 | 8 8 14 32 38 2 . . 2 Fast Attach 2 | . . . 2 . . . . . Attach 52 | 6 2 2 11 18 4 4 . 5 Detach 8 | . . . 1 4 . . 2 1 Swap 72 | 1 1 3 7 54 2 4 . . Drop 49 | . 3 6 17 23 . . . . Fire 401 | . 14 28 111 165 10 41 . 32 Melee 3 | . . . 3 . . . . . Ram . | . . . . . . . . . Kick . | . . . . . . . . . Crush 2 | . . . 1 1 . . . . Escape Stasis . | . . . . . . . . . Rewire . | . . . . . . . . . Trap . | . . . . . . . . . Miscellaneous . | . . . . . . . . . Route ------- -11/Scrapyard -10/Materials -9/Materials -8/Materials (discovered 2 exits: *Fac x2) -7/Factory (discovered 4 exits: *Fac x2 / *Sto / *Low) -7/Lower Caves -7/Lower Caves -7/Data Miner -6/Proximity Caves History --------- Turn | Location | Event 12 | -11/Scrapyard | Discovered new exit (range 14) 70 | -11/Scrapyard | Entered Materials 243 | -10/Materials | Discovered new exit (range 16) 302 | -10/Materials | Build established: Mutant 411 | -10/Materials | Entered another Materials area 411 | -9/Materials | Evolved 2 slots: Propulsion x1, Utility x1 841 | -9/Materials | Discovered new exit (range 10) 926 | -9/Materials | Entered another Materials area 926 | -8/Materials | Evolved 2 slots: Propulsion x1, Utility x1 1206 | -8/Materials | Build established: Scavenger-Mutant 1647 | -8/Materials | Discovered new exit (range 4) 1997 | -8/Materials | Discovered new exit (range 15) 2048 | -8/Materials | Found Prototype Device 2469 | -8/Materials | Repaired Broken Hvy. Assault Cannon 2614 | -8/Materials | Entered Factory 2614 | -7/Factory | Evolved 2 slots: Power x1, Utility x1 3594 | -7/Factory | Discovered new exit (range 16) 3776 | -7/Factory | Discovered new exit (range 8) 3776 | -7/Factory | Identified exit to Factory 3788 | -7/Factory | Identified exit to Storage 4076 | -7/Factory | Fabricated Hvy. Assault Cannon (x1) 4419 | -7/Factory | Discovered exit to Factory (range 14) 5201 | -7/Factory | Discovered new exit (range 12) 5270 | -7/Factory | Identified exit to Lower Caves 5414 | -7/Factory | First assault squad dispatched 5429 | -7/Factory | Repaired Arm. Huge Wheel 5482 | -7/Factory | Build established: Mutant 5489 | -7/Factory | Entered Lower Caves 5518 | -7/Lower Caves | Lost 3 parts (2u1w) 5797 | -7/Lower Caves | Discovered new exit (range 13) 5813 | -7/Lower Caves | Identified exit to Lower Caves 5819 | -7/Lower Caves | Entered another Lower Caves area 5870 | -7/Lower Caves | Core integrity fell below 50% 5927 | -7/Lower Caves | Learned Factory interactive machine intel 6069 | -7/Lower Caves | Lost 3 parts (2n1u) 6096 | -7/Lower Caves | Encountered a Warlord checkpoint 6150 | -7/Lower Caves | Discovered new exit (range 3) 6153 | -7/Lower Caves | Identified exit to Data Miner 6157 | -7/Lower Caves | Entered Data Miner 6158 | -7/Data Miner | Discovered new exit (range 7) 6186 | -7/Data Miner | Met Data Miner 6227 | -7/Data Miner | Learned location of Section 7 (-2) 6227 | -7/Data Miner | Acquired the access code to Warlord's prototype stash 6240 | -7/Data Miner | Received God Mode back door access code from Data Miner 6276 | -7/Data Miner | Identified exit to Proximity Caves 6277 | -7/Data Miner | Entered Proximity Caves 6280 | -6/Proximity Caves | Spotter reported a threat 6280 | -6/Proximity Caves | Spotter reported a threat 6377 | -6/Proximity Caves | Spotted B-75 Beast 6414 | -6/Proximity Caves | Spotter reported a threat 6467 | -6/Proximity Caves | Spotter reported a threat 6540 | -6/Proximity Caves | Escorted by Enhanced Grunt 6591 | -6/Proximity Caves | Attracted the attention of an 0b10 checkpoint 6645 | -6/Proximity Caves | Lost 3 parts (2p1n) 6665 | -6/Proximity Caves | Self-destructed Last Messages --------------- 06591_ Y-54 Guardian: "INTERCEPTING UNREGISTERED DERELICT." 06599_ S-27 Virus destroyed. 06599_ Enhanced Grunt destroyed. 06601_ Destroyed VTOL Module. 06601_ S-27 Virus knocked back. 06605_ S-27 Virus suffers critical hit (Blast). 06605_ Destroyed Lgt. Nuclear Core. 06608_ Lgt. Nuclear Core destroyed. 06609_ S-27 Virus destroyed. 06614_ Neutrino Core destroyed. 06615_ Y-54 Guardian destroyed. 06619_ Gatling Laser fries itself beyond repair. 06620_ Acquired 1 matter. 06627_ Acquired Prototype Leg. 06628_ Acquired 66 matter. 06631_ Acquired 70 matter. 06637_ Acquired 17 matter. 06641_ Identified Enh. Flexi-carbon Leg. 06662_ System corrupted: Component data lost. Map ----- +----------------------------------------------------+ | | | | | | | ?????????????????????????????????????????????????? | | ?????????????????????????????????????????????????? | | ?????????????????????????????????????????????????? | | ?????????????????????????????????????????????????? | | ?????????????????????????????????????????????????? | | ?????????????????????????????????????????????????? | | ?????????????????????????????????????????????????? | | ?????????????????????????????????????????????????? | | ?????????????????????????????????????????????????? | | ?????????????????????????????????????????????????? | | ?????????????????????????????????????????????????? | | ?????????????????????????????????????????????????? | | ?????????????????????????????????????????????????? | | ?????????????????????????????????????????????????? | | ?????????????????????????????????????????????????? | | ????????????????????????####?????????????????????? | | ??????????????????????### ##????????????????????? | | ??????????????????##### #????????????????????? | | ?????????????????## ########????##???????? | | ????????????# ?## #??## #???????? | | ????????#### "# #!#### #?## #???????? | | ????????? ## ###??# ### #???????? | | ? ?????? ## @ #???# #???????? | | ? ?????? "## #??# #???????? | | ? ????? ### #??### ##??????? | | ? ?????# #;###### ##????## ##?????? | | ? ?????# ??? ##??????# "###???? | | ? #?????# ??? ##???????## #"#???? | | ? #?????# #????# ##?????????### ##???? | | # #?????# #?????## #???????????## #???? | | # #?????# #???????###???????????# #???? | | # ??##??# #???????????####????### #???? | | # ?## ### #??????????## ######"% #???? | | #?# % % #???####???# #???? | | #?# % #???## #??## ##???? | | #?# "" #?### #### ##????? | | ! #?# "# ### #"#######?????? | | #?### ## ###????????????? | | /##???## #### # ## ##??????????????? | | ##???### ### ##??# ##### ##???????????????? | | #???## ##?####???# #???# #????????????????? | | ##??# ###?????????# ???# #????????????????? | | #### #??????????? ??? #????????????????? | | #??????????? ?? #????????????????? | | #?????????? #?######????????????????? | | ## #?????????? #???????????????????????? | | ## ##?????????? ????????????????????????? | +----------------------------------------------------+ Best States ------------- Heat Dissipation 61 Energy Generation 29 Energy Capacity 480 Matter Stores 300 Matter Capacity 300 Sight Range 16 Robot Scan Range 15 Terrain Scan Range 16 Terrain Scan Density 10 ECM Strength 1 Jamming Range 12 Armor Coverage 600 Weapon Cycling 15 Evasion (%) 40 Recoil Reduction 4 Matter Filtering 30 Salvage Targeting 2 Authchip Count 2 Item Schematics ----------------- Lrg. Storage Unit | -8/Materials | Scanalyzed Hcp. Storage Unit | -8/Materials | Scanalyzed Imp. Salvage Targeting Computer | -8/Materials | Scanalyzed Adv. Terrain Scan Processor | -8/Materials | Scanalyzed Hrd. Heavy Armor Plating | -8/Materials | Scanalyzed Hvy. Assault Cannon | -8/Materials | Scanalyzed Transmission Jammer | -8/Materials | Scanalyzed Weapon Cycler | -8/Materials | Scanalyzed Arm. Treads | -8/Materials | Scanalyzed Combat Drone Bay | -7/Data Miner | Free Lgt. Regenerative Plating | -7/Data Miner | Free Cld. Cesium-ion Thruster | -7/Data Miner | Free Gravity Neutralizer | -7/Data Miner | Free Imp. Heavy Laser | -7/Data Miner | Free Antigrav System | -7/Data Miner | Free Imp. Launcher Guidance Computer | -7/Data Miner | Free Variable Charge Gun | -7/Data Miner | Free Enh. Gauss Cannon | -7/Data Miner | Free Stasis Canceller | -7/Data Miner | Free Imp. Armor Integrity Analyzer | -7/Data Miner | Free Robot Schematics ------------------ Y-54 Guardian | -7/Data Miner | Free R-10 Processor | -7/Data Miner | Free M-22 Extractor | -7/Data Miner | Free B-60 Warrior | -7/Data Miner | Free S-27 Virus | -7/Data Miner | Free Fabricated ------------ Hvy. Assault Cannon | x1 | -7/Factory | Authchip Alien Tech Used ----------------- None Achievements -------------- None Challenges ------------ None Game ------ Seed GunRecyclingMeganuke Manual? 0 Play Time 00:59:12 Cumulative 95.2 hours Start 2024.04.16 @ 13:40:32 End 2024.04.16 @ 22:10:49 Sessions 5 Manual Loads 0 Difficulty Rogue Special Mode None Game No. 123 Rogue 123 Adventurer 0 Explorer 0 Win Type - Total 1 Types 1/0/0/0/0/0/0/0/0 Lore% 42 Gallery% 49 Achievement% 45 Wizard Run 0 Options --------- Layout 1 ASCII 0 Keyboard 0 Movement Mouse Keybinds 0 Fullscreen 2 Font 32/Smallcaps Map View 50x40 Zoom Use 0% Tactical HUD 1 Map Filters NONE Filters NONE Steam 1 RUN: 864761c1-11ef-42a3-be45-cd251ed13b3a